{"text_format":"1","workbook":"xlsx","n_sheets":2,"sheets":["Εισαγωγή μισθοδοσίας","stubs_template"],"not_rendered":{"charts":0,"images":0,"macros":1,"external_links":0,"defined_names":7,"comments":0,"pivot_tables":0},"unopened":[],"bounds":{"document_bytes":16777216,"sheet_cells":100000,"rows_first":2000,"rows_last":500,"rows_between":2000,"halvings":0,"cell_chars":16384,"cell_head_chars":4096},"cells_cut":0,"cells_raw":0,"read":"whole","date_system":"1900"}

{"sheet":"Εισαγωγή μισθοδοσίας","index":0,"n_rows":13,"n_cols":24,"rows_kept":13,"cut":false,"hidden":false,"merged":[]}
[null,"ΑΡΙΘΜΟΜΗΧΑΝΗ ΜΙΣΘΟΔΟΣΙΑΣ",null,null,null,null,null,null,null,null,"ΠΕΡΙΟΔΟΣ ΛΗΞΗΣ:",41372,null,"ΕΠΩΝΥΜΙΑ ΕΤΑΙΡΕΙΑΣ:",null,"ΠΑΝΔΟΜΙΚΗ Α.Ε.Τ.Β.Ε."]
[]
[null,"Αναγνωριστικό","Όνομα υπαλλήλου","Δεδουλευμένες ώρες","Ώρες άδειας","Ώρες ασθένειας","Ώρες υπερωριών","Υπερωριακή αμοιβή","Μεικτή αμοιβή","Φόροι και κρατήσεις","Άλλες κρατήσεις","Καθαρή αμοιβή"," ","Ωριαία αμοιβή","Φορολογική κατάσταση","Φόρος\nαλληλ.","Δημοτικός φόρος","Φόρος εισοδήματος","Κοινωνική ασφάλιση","Ιατρική περίθαλψη","Σύνολο παρακρατούμενων φόρων","Ασφαλιστικές κρατήσεις","Άλλες  κρατήσεις","Σύνολο κρατήσεων"]
[null,1001,"Στέλλα Κωστίδου",50,5,1,null,null,{"$f":"SUM(Employees[[#This Row],[Δεδουλευμένες ώρες]:[Ώρες ασθένειας]])*Employees[[#This Row],[Ωριαία αμοιβή]]+Employees[[#This Row],[Ώρες υπερωριών]]*Employees[[#This Row],[Υπερωριακή αμοιβή]]","v":560},{"$f":"Employees[[#This Row],[Μεικτή αμοιβή]]*Employees[[#This Row],[Σύνολο παρακρατούμενων φόρων]] + Employees[[#This Row],[Σύνολο κρατήσεων]]","v":273.08000000000004},20,{"$f":"Employees[[#This Row],[Μεικτή αμοιβή]]-Employees[[#This Row],[Φόροι και κρατήσεις]]-Employees[[#This Row],[Άλλες κρατήσεις]]","v":266.91999999999996},null,10,1,4,2.3E-2,0.28000000000000003,6.3E-2,1.4500000000000001E-2,{"$f":"SUM(Employees[[#This Row],[Δημοτικός φόρος]:[Ιατρική περίθαλψη]])","v":0.38050000000000006},20,40,{"$f":"SUM(Employees[[#This Row],[Ασφαλιστικές κρατήσεις]:[Άλλες  κρατήσεις]])","v":60}]
[null,1002,"Λεωνίδας Γιακουμάκης",40,null,null,null,null,{"$f":"SUM(Employees[[#This Row],[Δεδουλευμένες ώρες]:[Ώρες ασθένειας]])*Employees[[#This Row],[Ωριαία αμοιβή]]+Employees[[#This Row],[Ώρες υπερωριών]]*Employees[[#This Row],[Υπερωριακή αμοιβή]]","v":320},{"$f":"Employees[[#This Row],[Μεικτή αμοιβή]]*Employees[[#This Row],[Σύνολο παρακρατούμενων φόρων]] + Employees[[#This Row],[Σύνολο κρατήσεων]]","v":131.76000000000002},null,{"$f":"Employees[[#This Row],[Μεικτή αμοιβή]]-Employees[[#This Row],[Φόροι και κρατήσεις]]-Employees[[#This Row],[Άλλες κρατήσεις]]","v":188.23999999999998},null,8,1,1,2.3E-2,0.28000000000000003,6.3E-2,1.4500000000000001E-2,{"$f":"SUM(Employees[[#This Row],[Δημοτικός φόρος]:[Ιατρική περίθαλψη]])","v":0.38050000000000006},0,10,{"$f":"SUM(Employees[[#This Row],[Ασφαλιστικές κρατήσεις]:[Άλλες  κρατήσεις]])","v":10}]
[null,1003,"Ανδριάνα Γιώργη",35,3,null,null,null,{"$f":"SUM(Employees[[#This Row],[Δεδουλευμένες ώρες]:[Ώρες ασθένειας]])*Employees[[#This Row],[Ωριαία αμοιβή]]+Employees[[#This Row],[Ώρες υπερωριών]]*Employees[[#This Row],[Υπερωριακή αμοιβή]]","v":532},{"$f":"Employees[[#This Row],[Μεικτή αμοιβή]]*Employees[[#This Row],[Σύνολο παρακρατούμενων φόρων]] + Employees[[#This Row],[Σύνολο κρατήσεων]]","v":240.42600000000004},null,{"$f":"Employees[[#This Row],[Μεικτή αμοιβή]]-Employees[[#This Row],[Φόροι και κρατήσεις]]-Employees[[#This Row],[Άλλες κρατήσεις]]","v":291.57399999999996},null,14,1,3,2.3E-2,0.28000000000000003,6.3E-2,1.4500000000000001E-2,{"$f":"SUM(Employees[[#This Row],[Δημοτικός φόρος]:[Ιατρική περίθαλψη]])","v":0.38050000000000006},18,20,{"$f":"SUM(Employees[[#This Row],[Ασφαλιστικές κρατήσεις]:[Άλλες  κρατήσεις]])","v":38}]
[null,1008,"Αλέξανδρος Κινήνης",50,5,1,null,null,{"$f":"SUM(Employees[[#This Row],[Δεδουλευμένες ώρες]:[Ώρες ασθένειας]])*Employees[[#This Row],[Ωριαία αμοιβή]]+Employees[[#This Row],[Ώρες υπερωριών]]*Employees[[#This Row],[Υπερωριακή αμοιβή]]","v":1120},{"$f":"Employees[[#This Row],[Μεικτή αμοιβή]]*Employees[[#This Row],[Σύνολο παρακρατούμενων φόρων]] + Employees[[#This Row],[Σύνολο κρατήσεων]]","v":441.16000000000008},null,{"$f":"Employees[[#This Row],[Μεικτή αμοιβή]]-Employees[[#This Row],[Φόροι και κρατήσεις]]-Employees[[#This Row],[Άλλες κρατήσεις]]","v":678.83999999999992},null,20,1,0,2.3E-2,0.28000000000000003,6.3E-2,1.4500000000000001E-2,{"$f":"SUM(Employees[[#This Row],[Δημοτικός φόρος]:[Ιατρική περίθαλψη]])","v":0.38050000000000006},15,null,{"$f":"SUM(Employees[[#This Row],[Ασφαλιστικές κρατήσεις]:[Άλλες  κρατήσεις]])","v":15}]
[null,1011,"Ιωάννης Ξυλαράς",40,null,null,2,15,{"$f":"SUM(Employees[[#This Row],[Δεδουλευμένες ώρες]:[Ώρες ασθένειας]])*Employees[[#This Row],[Ωριαία αμοιβή]]+Employees[[#This Row],[Ώρες υπερωριών]]*Employees[[#This Row],[Υπερωριακή αμοιβή]]","v":430},{"$f":"Employees[[#This Row],[Μεικτή αμοιβή]]*Employees[[#This Row],[Σύνολο παρακρατούμενων φόρων]] + Employees[[#This Row],[Σύνολο κρατήσεων]]","v":223.61500000000004},null,{"$f":"Employees[[#This Row],[Μεικτή αμοιβή]]-Employees[[#This Row],[Φόροι και κρατήσεις]]-Employees[[#This Row],[Άλλες κρατήσεις]]","v":206.38499999999996},null,10,1,0,2.3E-2,0.28000000000000003,6.3E-2,1.4500000000000001E-2,{"$f":"SUM(Employees[[#This Row],[Δημοτικός φόρος]:[Ιατρική περίθαλψη]])","v":0.38050000000000006},20,40,{"$f":"SUM(Employees[[#This Row],[Ασφαλιστικές κρατήσεις]:[Άλλες  κρατήσεις]])","v":60}]
[null,1012,"Πέτρος Πέτρου",40,5,1,null,null,{"$f":"SUM(Employees[[#This Row],[Δεδουλευμένες ώρες]:[Ώρες ασθένειας]])*Employees[[#This Row],[Ωριαία αμοιβή]]+Employees[[#This Row],[Ώρες υπερωριών]]*Employees[[#This Row],[Υπερωριακή αμοιβή]]","v":552},{"$f":"Employees[[#This Row],[Μεικτή αμοιβή]]*Employees[[#This Row],[Σύνολο παρακρατούμενων φόρων]] + Employees[[#This Row],[Σύνολο κρατήσεων]]","v":270.03600000000006},null,{"$f":"Employees[[#This Row],[Μεικτή αμοιβή]]-Employees[[#This Row],[Φόροι και κρατήσεις]]-Employees[[#This Row],[Άλλες κρατήσεις]]","v":281.96399999999994},null,12,1,4,2.3E-2,0.28000000000000003,6.3E-2,1.4500000000000001E-2,{"$f":"SUM(Employees[[#This Row],[Δημοτικός φόρος]:[Ιατρική περίθαλψη]])","v":0.38050000000000006},20,40,{"$f":"SUM(Employees[[#This Row],[Ασφαλιστικές κρατήσεις]:[Άλλες  κρατήσεις]])","v":60}]
[null,1025,"Γιώργος Παπαδόπουλος",36,null,2,1,18,{"$f":"SUM(Employees[[#This Row],[Δεδουλευμένες ώρες]:[Ώρες ασθένειας]])*Employees[[#This Row],[Ωριαία αμοιβή]]+Employees[[#This Row],[Ώρες υπερωριών]]*Employees[[#This Row],[Υπερωριακή αμοιβή]]","v":474},{"$f":"Employees[[#This Row],[Μεικτή αμοιβή]]*Employees[[#This Row],[Σύνολο παρακρατούμενων φόρων]] + Employees[[#This Row],[Σύνολο κρατήσεων]]","v":225.35700000000003},25,{"$f":"Employees[[#This Row],[Μεικτή αμοιβή]]-Employees[[#This Row],[Φόροι και κρατήσεις]]-Employees[[#This Row],[Άλλες κρατήσεις]]","v":223.64299999999997},null,12,1,2,2.3E-2,0.28000000000000003,6.3E-2,1.4500000000000001E-2,{"$f":"SUM(Employees[[#This Row],[Δημοτικός φόρος]:[Ιατρική περίθαλψη]])","v":0.38050000000000006},25,20,{"$f":"SUM(Employees[[#This Row],[Ασφαλιστικές κρατήσεις]:[Άλλες  κρατήσεις]])","v":45}]
[null,1032,"Μαρία Αναστασίου",40,5,1,null,null,{"$f":"SUM(Employees[[#This Row],[Δεδουλευμένες ώρες]:[Ώρες ασθένειας]])*Employees[[#This Row],[Ωριαία αμοιβή]]+Employees[[#This Row],[Ώρες υπερωριών]]*Employees[[#This Row],[Υπερωριακή αμοιβή]]","v":460},{"$f":"Employees[[#This Row],[Μεικτή αμοιβή]]*Employees[[#This Row],[Σύνολο παρακρατούμενων φόρων]] + Employees[[#This Row],[Σύνολο κρατήσεων]]","v":175.03000000000003},50,{"$f":"Employees[[#This Row],[Μεικτή αμοιβή]]-Employees[[#This Row],[Φόροι και κρατήσεις]]-Employees[[#This Row],[Άλλες κρατήσεις]]","v":234.96999999999997},null,10,1,3,2.3E-2,0.28000000000000003,6.3E-2,1.4500000000000001E-2,{"$f":"SUM(Employees[[#This Row],[Δημοτικός φόρος]:[Ιατρική περίθαλψη]])","v":0.38050000000000006},null,null,{"$f":"SUM(Employees[[#This Row],[Ασφαλιστικές κρατήσεις]:[Άλλες  κρατήσεις]])","v":0}]
[null,1049,"Αντώνης Αντωνίου",40,1,null,null,null,{"$f":"SUM(Employees[[#This Row],[Δεδουλευμένες ώρες]:[Ώρες ασθένειας]])*Employees[[#This Row],[Ωριαία αμοιβή]]+Employees[[#This Row],[Ώρες υπερωριών]]*Employees[[#This Row],[Υπερωριακή αμοιβή]]","v":615},{"$f":"Employees[[#This Row],[Μεικτή αμοιβή]]*Employees[[#This Row],[Σύνολο παρακρατούμενων φόρων]] + Employees[[#This Row],[Σύνολο κρατήσεων]]","v":259.00750000000005},23,{"$f":"Employees[[#This Row],[Μεικτή αμοιβή]]-Employees[[#This Row],[Φόροι και κρατήσεις]]-Employees[[#This Row],[Άλλες κρατήσεις]]","v":332.99249999999995},null,15,1,2,2.3E-2,0.28000000000000003,6.3E-2,1.4500000000000001E-2,{"$f":"SUM(Employees[[#This Row],[Δημοτικός φόρος]:[Ιατρική περίθαλψη]])","v":0.38050000000000006},25,null,{"$f":"SUM(Employees[[#This Row],[Ασφαλιστικές κρατήσεις]:[Άλλες  κρατήσεις]])","v":25}]
[null,"Σύνολα",{"$f":"SUBTOTAL(103,Employees[Όνομα υπαλλήλου])","v":9},{"$f":"SUBTOTAL(109,Employees[Δεδουλευμένες ώρες])","v":371},{"$f":"SUBTOTAL(109,Employees[Ώρες άδειας])","v":24},{"$f":"SUBTOTAL(109,Employees[Ώρες ασθένειας])","v":6},{"$f":"SUBTOTAL(109,Employees[Ώρες υπερωριών])","v":3},null,{"$f":"SUBTOTAL(109,Employees[Μεικτή αμοιβή])","v":5063},{"$f":"SUBTOTAL(109,Employees[Φόροι και κρατήσεις])","v":2239.4715000000001},{"$f":"SUBTOTAL(109,Employees[Άλλες κρατήσεις])","v":118},{"$f":"SUBTOTAL(109,Employees[Καθαρή αμοιβή])","v":2705.5284999999994},null,null,null,null,null,null,null,null,null,{"$f":"SUBTOTAL(109,Employees[Ασφαλιστικές κρατήσεις])","v":143},{"$f":"SUBTOTAL(109,Employees[Άλλες  κρατήσεις])","v":170},{"$f":"SUBTOTAL(109,Employees[Σύνολο κρατήσεων])","v":313}]

{"sheet":"stubs_template","index":1,"n_rows":47,"n_cols":13,"rows_kept":47,"cut":false,"hidden":true,"merged":[[45,2,45,3],[32,2,32,3],[33,2,33,3],[20,2,20,3],[21,2,21,3],[2,3,2,4],[14,3,14,4],[26,3,26,4],[38,3,38,4],[44,2,44,3],[8,2,8,3],[9,2,9,3],[2,7,2,8],[14,7,14,8],[26,7,26,8],[38,7,38,8],[38,11,38,12],[26,11,26,12],[14,11,14,12],[2,11,2,12]]}
[]
[null,null,{"$f":"CompanyName","v":"ΠΑΝΔΟΜΙΚΗ Α.Ε.Τ.Β.Ε."}]
[null,null,"ΠΕΡΙΟΔΟΣ",{"$f":"PeriodEnding","v":41372},null,null,"ΟΝΟΜΑ",{"$f":"IFERROR(INDEX(Employees[Όνομα υπαλλήλου],Stub),\"\")","v":"Στέλλα Κωστίδου"},null,null,"ΑΝΑΓΝΩΡΙΣΤΙΚΟ ΥΠΑΛΛΗΛΟΥ",{"$f":"IFERROR(INDEX(Employees[Αναγνωριστικό],Stub),\"\")","v":1001}]
[null,null,"Φορολογική κατάσταση",null,{"$f":"IFERROR(INDEX(Employees[Φορολογική κατάσταση],Stub),\"\")","v":1},null,"Φόρος αλληλεγγύης (από Ε-4)",null,{"$f":"IFERROR(INDEX(Employees[Φόρος\nαλληλ.],Stub),\"\")","v":4},null,"Ώρες που εργάστηκε",null,{"$f":"IFERROR(INDEX(Employees[Δεδουλευμένες ώρες],Stub),\"\")","v":50}]
[null,null,"Ωριαία αμοιβή",null,{"$f":"IFERROR(INDEX(Employees[Ωριαία αμοιβή],Stub),\"\")","v":10},null,"Υπερωριακή αμοιβή",null,{"$f":"IFERROR(INDEX(Employees[Υπερωριακή αμοιβή],Stub),\"\")","v":0},null,"Ώρες ασθένειας",null,{"$f":"IFERROR(INDEX(Employees[Ώρες ασθένειας],Stub),\"\")","v":1}]
[null,null,"Κοινωνική ασφάλιση",null,{"$f":"IFERROR(INDEX(Employees[Κοινωνική ασφάλιση],Stub)  *  INDEX(Employees[Μεικτή αμοιβή],Stub),\"\")","v":35.28},null,"Φόρος εισοδήματος ",null,{"$f":"IFERROR(INDEX(Employees[Φόρος εισοδήματος],Stub)  *  INDEX(Employees[Μεικτή αμοιβή],Stub),\"\")","v":156.80000000000001},null,"Ώρες άδειας",null,{"$f":"IFERROR(INDEX(Employees[Ώρες άδειας],Stub),\"\")","v":5}]
[null,null,"Ιατρική περίθαλψη ",null,{"$f":"IFERROR(INDEX(Employees[Ιατρική περίθαλψη],Stub)  *  INDEX(Employees[Μεικτή αμοιβή],Stub),\"\")","v":8.120000000000001},null,"Δημοτικός φόρος ",null,{"$f":"IFERROR(INDEX(Employees[Δημοτικός φόρος],Stub)  *  INDEX(Employees[Μεικτή αμοιβή],Stub),\"\")","v":12.879999999999999},null,"Ώρες υπερωριών",null,{"$f":"IFERROR(INDEX(Employees[Ώρες υπερωριών],Stub),\"\")","v":0}]
[null,null,"Ασφαλιστικές κρατήσεις",null,{"$f":"IFERROR(INDEX(Employees[Ασφαλιστικές κρατήσεις],Stub),\"\")","v":20},null,"Άλλες κανονικές κρατήσεις",null,{"$f":"IFERROR(INDEX(Employees[Άλλες  κρατήσεις],Stub),\"\")","v":40},null,"Μεικτή αμοιβή",null,{"$f":"IFERROR(INDEX(Employees[Μεικτή αμοιβή],Stub),\"\")","v":560}]
[null,null,"Σύνολο φόρων και",null,{"$f":"IFERROR(INDEX(Employees[Φόροι και κρατήσεις],Stub),\"\")","v":273.08000000000004},null,"Άλλες κρατήσεις",null,{"$f":"IFERROR(INDEX(Employees[Άλλες κρατήσεις],Stub),\"\")","v":20},null,"Σύνολο φόρων και κρατήσεων ",null,{"$f":"IFERROR(INDEX(Employees[Φόροι και κρατήσεις],Stub)  +  INDEX(Employees[Άλλες κρατήσεις],Stub),\"\")","v":293.08000000000004}]
[null,null,"κρατήσεων "]
[null,null,null,null,null,null,null,null,null,null,"ΚΑΘΑΡΟ ΠΛΗΡΩΤΕΟ",null,{"$f":"IFERROR(INDEX(Employees[Καθαρή αμοιβή],Stub),\"\")","v":266.91999999999996}]
[]
[]
[null,null,{"$f":"CompanyName","v":"ΠΑΝΔΟΜΙΚΗ Α.Ε.Τ.Β.Ε."}]
[null,null,"ΠΕΡΙΟΔΟΣ",{"$f":"PeriodEnding","v":41372},null,null,"ΟΝΟΜΑ",{"$f":"IFERROR(INDEX(Employees[Όνομα υπαλλήλου],Stub),\"\")","v":"Λεωνίδας Γιακουμάκης"},null,null,"ΑΝΑΓΝΩΡΙΣΤΙΚΟ ΥΠΑΛΛΗΛΟΥ",{"$f":"IFERROR(INDEX(Employees[Αναγνωριστικό],Stub),\"\")","v":1002}]
[null,null,"Φορολογική κατάσταση",null,{"$f":"IFERROR(INDEX(Employees[Φορολογική κατάσταση],Stub),\"\")","v":1},null,"Φόρος αλληλεγγύης (από Ε-4)",null,{"$f":"IFERROR(INDEX(Employees[Φόρος\nαλληλ.],Stub),\"\")","v":1},null,"Ώρες που εργάστηκε",null,{"$f":"IFERROR(INDEX(Employees[Δεδουλευμένες ώρες],Stub),\"\")","v":40}]
[null,null,"Ωριαία αμοιβή",null,{"$f":"IFERROR(INDEX(Employees[Ωριαία αμοιβή],Stub),\"\")","v":8},null,"Υπερωριακή αμοιβή",null,{"$f":"IFERROR(INDEX(Employees[Υπερωριακή αμοιβή],Stub),\"\")","v":0},null,"Ώρες ασθένειας",null,{"$f":"IFERROR(INDEX(Employees[Ώρες ασθένειας],Stub),\"\")","v":0}]
[null,null,"Κοινωνική ασφάλιση",null,{"$f":"IFERROR(INDEX(Employees[Κοινωνική ασφάλιση],Stub)  *  INDEX(Employees[Μεικτή αμοιβή],Stub),\"\")","v":20.16},null,"Φόρος εισοδήματος ",null,{"$f":"IFERROR(INDEX(Employees[Φόρος εισοδήματος],Stub)  *  INDEX(Employees[Μεικτή αμοιβή],Stub),\"\")","v":89.600000000000009},null,"Ώρες άδειας",null,{"$f":"IFERROR(INDEX(Employees[Ώρες άδειας],Stub),\"\")","v":0}]
[null,null,"Ιατρική περίθαλψη ",null,{"$f":"IFERROR(INDEX(Employees[Ιατρική περίθαλψη],Stub)  *  INDEX(Employees[Μεικτή αμοιβή],Stub),\"\")","v":4.6400000000000006},null,"Δημοτικός φόρος ",null,{"$f":"IFERROR(INDEX(Employees[Δημοτικός φόρος],Stub)  *  INDEX(Employees[Μεικτή αμοιβή],Stub),\"\")","v":7.3599999999999994},null,"Ώρες υπερωριών",null,{"$f":"IFERROR(INDEX(Employees[Ώρες υπερωριών],Stub),\"\")","v":0}]
[null,null,"Ασφαλιστικές κρατήσεις",null,{"$f":"IFERROR(INDEX(Employees[Ασφαλιστικές κρατήσεις],Stub),\"\")","v":0},null,"Άλλες κανονικές κρατήσεις",null,{"$f":"IFERROR(INDEX(Employees[Άλλες  κρατήσεις],Stub),\"\")","v":10},null,"Μεικτή αμοιβή",null,{"$f":"IFERROR(INDEX(Employees[Μεικτή αμοιβή],Stub),\"\")","v":320}]
[null,null,"Σύνολο φόρων και",null,{"$f":"IFERROR(INDEX(Employees[Φόροι και κρατήσεις],Stub),\"\")","v":131.76000000000002},null,"Άλλες κρατήσεις",null,{"$f":"IFERROR(INDEX(Employees[Άλλες κρατήσεις],Stub),\"\")","v":0},null,"Σύνολο φόρων και κρατήσεων ",null,{"$f":"IFERROR(INDEX(Employees[Φόροι και κρατήσεις],Stub)  +  INDEX(Employees[Άλλες κρατήσεις],Stub),\"\")","v":131.76000000000002}]
[null,null,"κρατήσεων "]
[null,null,null,null,null,null,null,null,null,null,"ΚΑΘΑΡΟ ΠΛΗΡΩΤΕΟ",null,{"$f":"IFERROR(INDEX(Employees[Καθαρή αμοιβή],Stub),\"\")","v":188.23999999999998}]
[]
[]
[null,null,{"$f":"CompanyName","v":"ΠΑΝΔΟΜΙΚΗ Α.Ε.Τ.Β.Ε."}]
[null,null,"ΠΕΡΙΟΔΟΣ",{"$f":"PeriodEnding","v":41372},null,null,"ΟΝΟΜΑ",{"$f":"IFERROR(INDEX(Employees[Όνομα υπαλλήλου],Stub),\"\")","v":"Ανδριάνα Γιώργη"},null,null,"ΑΝΑΓΝΩΡΙΣΤΙΚΟ ΥΠΑΛΛΗΛΟΥ",{"$f":"IFERROR(INDEX(Employees[Αναγνωριστικό],Stub),\"\")","v":1003}]
[null,null,"Φορολογική κατάσταση",null,{"$f":"IFERROR(INDEX(Employees[Φορολογική κατάσταση],Stub),\"\")","v":1},null,"Φόρος αλληλεγγύης (από Ε-4)",null,{"$f":"IFERROR(INDEX(Employees[Φόρος\nαλληλ.],Stub),\"\")","v":3},null,"Ώρες που εργάστηκε",null,{"$f":"IFERROR(INDEX(Employees[Δεδουλευμένες ώρες],Stub),\"\")","v":35}]
[null,null,"Ωριαία αμοιβή",null,{"$f":"IFERROR(INDEX(Employees[Ωριαία αμοιβή],Stub),\"\")","v":14},null,"Υπερωριακή αμοιβή",null,{"$f":"IFERROR(INDEX(Employees[Υπερωριακή αμοιβή],Stub),\"\")","v":0},null,"Ώρες ασθένειας",null,{"$f":"IFERROR(INDEX(Employees[Ώρες ασθένειας],Stub),\"\")","v":0}]
[null,null,"Κοινωνική ασφάλιση",null,{"$f":"IFERROR(INDEX(Employees[Κοινωνική ασφάλιση],Stub)  *  INDEX(Employees[Μεικτή αμοιβή],Stub),\"\")","v":33.515999999999998},null,"Φόρος εισοδήματος ",null,{"$f":"IFERROR(INDEX(Employees[Φόρος εισοδήματος],Stub)  *  INDEX(Employees[Μεικτή αμοιβή],Stub),\"\")","v":148.96},null,"Ώρες άδειας",null,{"$f":"IFERROR(INDEX(Employees[Ώρες άδειας],Stub),\"\")","v":3}]
[null,null,"Ιατρική περίθαλψη ",null,{"$f":"IFERROR(INDEX(Employees[Ιατρική περίθαλψη],Stub)  *  INDEX(Employees[Μεικτή αμοιβή],Stub),\"\")","v":7.7140000000000004},null,"Δημοτικός φόρος ",null,{"$f":"IFERROR(INDEX(Employees[Δημοτικός φόρος],Stub)  *  INDEX(Employees[Μεικτή αμοιβή],Stub),\"\")","v":12.236000000000001},null,"Ώρες υπερωριών",null,{"$f":"IFERROR(INDEX(Employees[Ώρες υπερωριών],Stub),\"\")","v":0}]
[null,null,"Ασφαλιστικές κρατήσεις",null,{"$f":"IFERROR(INDEX(Employees[Ασφαλιστικές κρατήσεις],Stub),\"\")","v":18},null,"Άλλες κανονικές κρατήσεις",null,{"$f":"IFERROR(INDEX(Employees[Άλλες  κρατήσεις],Stub),\"\")","v":20},null,"Μεικτή αμοιβή",null,{"$f":"IFERROR(INDEX(Employees[Μεικτή αμοιβή],Stub),\"\")","v":532}]
[null,null,"Σύνολο φόρων και",null,{"$f":"IFERROR(INDEX(Employees[Φόροι και κρατήσεις],Stub),\"\")","v":240.42600000000004},null,"Άλλες κρατήσεις",null,{"$f":"IFERROR(INDEX(Employees[Άλλες κρατήσεις],Stub),\"\")","v":0},null,"Σύνολο φόρων και κρατήσεων ",null,{"$f":"IFERROR(INDEX(Employees[Φόροι και κρατήσεις],Stub)  +  INDEX(Employees[Άλλες κρατήσεις],Stub),\"\")","v":240.42600000000004}]
[null,null,"κρατήσεων "]
[null,null,null,null,null,null,null,null,null,null,"ΚΑΘΑΡΟ ΠΛΗΡΩΤΕΟ",null,{"$f":"IFERROR(INDEX(Employees[Καθαρή αμοιβή],Stub),\"\")","v":291.57399999999996}]
[]
[]
[null,null,{"$f":"CompanyName","v":"ΠΑΝΔΟΜΙΚΗ Α.Ε.Τ.Β.Ε."}]
[null,null,"ΠΕΡΙΟΔΟΣ",{"$f":"PeriodEnding","v":41372},null,null,"ΟΝΟΜΑ",{"$f":"IFERROR(INDEX(Employees[Όνομα υπαλλήλου],Stub),\"\")","v":"Αλέξανδρος Κινήνης"},null,null,"ΑΝΑΓΝΩΡΙΣΤΙΚΟ ΥΠΑΛΛΗΛΟΥ",{"$f":"IFERROR(INDEX(Employees[Αναγνωριστικό],Stub),\"\")","v":1008}]
[null,null,"Φορολογική κατάσταση",null,{"$f":"IFERROR(INDEX(Employees[Φορολογική κατάσταση],Stub),\"\")","v":1},null,"Φόρος αλληλεγγύης (από Ε-4)",null,{"$f":"IFERROR(INDEX(Employees[Φόρος\nαλληλ.],Stub),\"\")","v":0},null,"Ώρες που εργάστηκε",null,{"$f":"IFERROR(INDEX(Employees[Δεδουλευμένες ώρες],Stub),\"\")","v":50}]
[null,null,"Ωριαία αμοιβή",null,{"$f":"IFERROR(INDEX(Employees[Ωριαία αμοιβή],Stub),\"\")","v":20},null,"Υπερωριακή αμοιβή",null,{"$f":"IFERROR(INDEX(Employees[Υπερωριακή αμοιβή],Stub),\"\")","v":0},null,"Ώρες ασθένειας",null,{"$f":"IFERROR(INDEX(Employees[Ώρες ασθένειας],Stub),\"\")","v":1}]
[null,null,"Κοινωνική ασφάλιση",null,{"$f":"IFERROR(INDEX(Employees[Κοινωνική ασφάλιση],Stub)  *  INDEX(Employees[Μεικτή αμοιβή],Stub),\"\")","v":70.56},null,"Φόρος εισοδήματος ",null,{"$f":"IFERROR(INDEX(Employees[Φόρος εισοδήματος],Stub)  *  INDEX(Employees[Μεικτή αμοιβή],Stub),\"\")","v":313.60000000000002},null,"Ώρες άδειας",null,{"$f":"IFERROR(INDEX(Employees[Ώρες άδειας],Stub),\"\")","v":5}]
[null,null,"Ιατρική περίθαλψη ",null,{"$f":"IFERROR(INDEX(Employees[Ιατρική περίθαλψη],Stub)  *  INDEX(Employees[Μεικτή αμοιβή],Stub),\"\")","v":16.240000000000002},null,"Δημοτικός φόρος ",null,{"$f":"IFERROR(INDEX(Employees[Δημοτικός φόρος],Stub)  *  INDEX(Employees[Μεικτή αμοιβή],Stub),\"\")","v":25.759999999999998},null,"Ώρες υπερωριών",null,{"$f":"IFERROR(INDEX(Employees[Ώρες υπερωριών],Stub),\"\")","v":0}]
[null,null,"Ασφαλιστικές κρατήσεις",null,{"$f":"IFERROR(INDEX(Employees[Ασφαλιστικές κρατήσεις],Stub),\"\")","v":15},null,"Άλλες κανονικές κρατήσεις",null,{"$f":"IFERROR(INDEX(Employees[Άλλες  κρατήσεις],Stub),\"\")","v":0},null,"Μεικτή αμοιβή",null,{"$f":"IFERROR(INDEX(Employees[Μεικτή αμοιβή],Stub),\"\")","v":1120}]
[null,null,"Σύνολο φόρων και",null,{"$f":"IFERROR(INDEX(Employees[Φόροι και κρατήσεις],Stub),\"\")","v":441.16000000000008},null,"Άλλες κρατήσεις",null,{"$f":"IFERROR(INDEX(Employees[Άλλες κρατήσεις],Stub),\"\")","v":0},null,"Σύνολο φόρων και κρατήσεων ",null,{"$f":"IFERROR(INDEX(Employees[Φόροι και κρατήσεις],Stub)  +  INDEX(Employees[Άλλες κρατήσεις],Stub),\"\")","v":441.16000000000008}]
[null,null,"κρατήσεων "]
[null,null,null,null,null,null,null,null,null,null,"ΚΑΘΑΡΟ ΠΛΗΡΩΤΕΟ",null,{"$f":"IFERROR(INDEX(Employees[Καθαρή αμοιβή],Stub),\"\")","v":678.83999999999992}]